bitfinex-derivatives/quotes_SOLF0:USTF0_20250501
["timestamp","ask_amount","ask_price","bid_price","bid_amount"]
[1746081792865,27.3582,148.62,148.55,0.29923]
[1746081793067,27.3582,148.62,148.55,7.03043]
[1746081793367,7.12780051,148.61,148.55,0.29923]
[1746081794269,6.7309,148.56,148.55,0.29923]
[1746081798375,7.12780051,148.61,148.55,0.29923]
[1746081798571,30.46780051,148.61,148.56,6.7306]
[1746081798971,6.7298,148.59,148.56,6.7306]
[1746081801475,6.7301,148.58,148.55,6.7309]
[1746081802881,6.7305,148.57,148.54,6.7316]
[1746081803173,30.46780051,148.61,148.51,27.475]
[1746081803875,6.7309,148.57,148.53,6.7319]
[1746081804376,6.7309,148.57,148.54,6.7317]
[1746081811877,6.7298,148.59,148.56,6.7309]
[1746081813084,6.7298,148.59,148.57,6.7304]
[1746081813282,6.7293,148.6,148.57,6.7304]
[1746081813483,23.34,148.61,148.53,10.52]
[1746081813683,23.34,148.61,148.56,6.7305]
[1746081814184,6.7296,148.59,148.56,6.7305]
[1746081814485,23.34,148.61,148.53,10.52]
[1746081814784,30.0687,148.61,148.54,23.54]
[1746081815184,30.0687,148.61,148.58,6.7296]
[1746081815577,6.7287,148.61,148.58,6.7296]
[1746081815880,27.7576,148.64,148.59,6.7291]
[1746081816380,27.7576,148.64,148.6,6.7291]
[1746081816582,23.54,148.64,148.6,6.7291]
[1746081817286,6.728,148.63,148.6,6.7291]
[1746081817983,6.728,148.63,148.59,6.7294]
[1746081819186,6.7285,148.62,148.59,6.7294]
[1746081819781,23.54,148.64,148.58,23.54]
[1746081819979,23.54,148.64,148.56,2.1012]
[1746081820188,7.12780051,148.63,148.56,2.1012]
[1746081820788,9.13960051,148.63,148.56,2.1012]
[1746081820985,6.7298,148.59,148.56,8.8321]
[1746081824485,6.7298,148.59,148.56,2.1012]
[1746081825188,6.7298,148.59,148.56,8.8321]
[1746081827393,6.7298,148.59,148.56,20.4121]
[1746081828096,9.13960051,148.63,148.56,11.58]
[1746081828290,1.9793,148.62,148.56,11.58]
[1746081828692,6.7304,148.57,148.56,11.58]
[1746081830997,6.7312,148.56,148.53,6.7321]
[1746081831397,30.66780051,148.6,148.52,30.2726]
[1746081831697,6.7316,148.55,148.52,30.2726]
[1746081832197,6.7319,148.54,148.52,30.2726]
[1746081832399,7.12780051,148.57,148.52,23.54]
[1746081832697,7.12780051,148.57,148.51,2.1008]
[1746081832896,6.7323,148.53,148.51,8.834]
[1746081833298,6.732,148.54,148.51,8.834]
[1746081833499,7.12780051,148.57,148.52,6.7325]
[1746081833901,6.7315,148.55,148.52,6.7325]
[1746081834401,6.7314,148.55,148.53,6.7322]
[1746081840303,6.7314,148.55,148.52,6.7326]
[1746081841303,6.7314,148.55,148.51,2.1008]
[1746081841508,6.7314,148.55,148.53,6.7322]
[1746081841708,6.7311,148.56,148.53,6.7322]
[1746081842105,23.54,148.6,148.51,2.1008]
[1746081842303,6.7297,148.59,148.53,23.46]
[1746081843310,6.7297,148.59,148.56,6.7306]
[1746081844117,23.54,148.6,148.53,23.46]
[1746081844820,6.7302,148.58,148.55,6.7313]
[1746081846012,6.7297,148.59,148.56,6.7306]
[1746081847018,6.73,148.58,148.56,6.7306]
[1746081847914,23.54,148.6,148.47,0.35047]
[1746081847915,40.36,148.57,148.47,0.35047]
[1746081848217,7.12780051,148.49,148.38,7.12780051]
[1746081848418,30.58780051,148.49,148.39,2.0894]
[1746081848614,30.58780051,148.49,148.41,6.7376]
[1746081849118,30.58780051,148.49,148.39,2.0894]
[1746081849319,5.05016903,148.48,148.39,2.0894]
[1746081849619,6.736,148.45,148.4,6.7381]
[1746081849811,5.05016903,148.44,148.4,6.7381]
[1746081850016,5.05016903,148.43,148.4,6.7381]
[1746081850214,5.05016903,148.42,148.4,6.7381]
[1746081850414,5.05016903,148.41,148.4,6.7381]
[1746081851322,6.7356,148.46,148.41,6.7376]
[1746081851519,5.04033768,148.45,148.41,6.7376]
[1746081851721,5.04033768,148.44,148.41,6.7376]
[1746081851917,5.04033768,148.43,148.41,6.7376]
[1746081852120,5.04033768,148.42,148.41,6.7376]
[1746081852422,6.7355,148.46,148.42,6.7369]
[1746081852624,5.03743254,148.45,148.42,6.7369]
[1746081852826,5.03743254,148.44,148.42,6.7369]
[1746081853019,5.03743254,148.43,148.42,6.7369]
[1746081853221,6.7355,148.46,148.42,6.7369]
[1746081853421,5.03449545,148.45,148.39,25.5494]
[1746081853620,30.58780051,148.49,148.39,25.5494]
[1746081853824,5.03493842,148.48,148.39,25.5494]
[1746081854025,5.03493842,148.47,148.39,25.5494]
[1746081854324,5.03493842,148.46,148.39,25.5494]
[1746081854525,6.7348,148.48,148.44,6.736]
[1746081854727,5.03325141,148.47,148.44,6.736]
[1746081854924,5.03325141,148.46,148.44,18.746]
[1746081855125,6.7348,148.48,148.44,18.746]
[1746081855328,5.03177375,148.47,148.44,18.746]
[1746081855521,5.03177375,148.46,148.44,18.746]
[1746081855723,6.7342,148.49,148.44,12.01]
[1746081855921,5.03206611,148.48,148.44,12.01]
[1746081856122,5.03206611,148.47,148.44,12.01]
[1746081856334,6.7342,148.49,148.45,6.7356]
[1746081856628,5.03128988,148.48,148.45,6.7356]
[1746081856825,5.03128988,148.47,148.46,6.7354]
[1746081857324,6.7337,148.5,148.46,6.7354]
[1746081857525,5.03196935,148.49,148.46,6.7354]
[1746081857724,5.03196935,148.48,148.46,6.7354]
[1746081857927,5.03196935,148.47,148.46,6.7354]
[1746081858228,6.7337,148.5,148.46,6.7354]
[1746081858417,5.03160161,148.49,148.46,6.7354]
[1746081858622,5.03160161,148.48,148.46,6.7354]
[1746081858822,6.7337,148.5,148.46,6.7354]
[1746081859128,5.03158313,148.49,148.46,6.7354]
[1746081859319,5.03158313,148.48,148.46,6.7354]
[1746081859528,6.7337,148.5,148.46,6.7354]
[1746081859722,5.03107876,148.49,148.46,6.7354]
[1746081859932,5.03107876,148.48,148.44,12.01]
[1746081860125,5.03107876,148.47,148.44,12.01]
[1746081860327,6.7346,148.48,148.44,18.7461]
[1746081860630,5.03061958,148.47,148.44,18.7461]
[1746081860826,5.030045,148.46,148.44,12.01]
[1746081861125,7.12780051,148.5,148.44,12.01]
[1746081861325,5.03077077,148.49,148.44,12.01]
[1746081861525,5.03077077,148.48,148.44,12.01]
[1746081861726,5.03077077,148.47,148.44,12.01]
[1746081861925,5.03077077,148.46,148.44,12.01]
[1746081862125,7.12780051,148.5,148.44,18.7463]
[1746081862330,5.03083792,148.49,148.44,18.7463]
[1746081862535,6.7351,148.47,148.44,18.7463]
[1746081862831,5.03081922,148.46,148.44,18.7463]
[1746081863022,6.7351,148.47,148.44,18.7463]
[1746081863221,5.0317839,148.46,148.44,18.7463]
[1746081863430,6.7351,148.47,148.44,18.7463]
[1746081863630,11.76704347,148.46,148.44,12.01]
[1746081863828,7.12780051,148.5,148.44,12.01]
[1746081864029,6.7348,148.48,148.45,6.7357]
[1746081864227,6.7348,148.48,148.44,12.01]
[1746081864228,5.03153612,148.47,148.44,12.01]
[1746081865230,11.76653612,148.47,148.44,18.7461]
[1746081865429,5.03153612,148.46,148.44,18.7461]
[1746081865631,6.735,148.47,148.44,18.7461]
[1746081865831,5.0310493,148.46,148.44,18.7461]
[1746081866031,6.735,148.47,148.44,18.7461]
[1746081866235,5.03126366,148.46,148.44,18.7461]
[1746081866425,6.735,148.47,148.44,18.7461]
[1746081866732,5.03119229,148.46,148.44,18.7461]
[1746081866933,6.735,148.47,148.44,18.7461]
[1746081867132,5.03114004,148.46,148.44,18.7461]
[1746081867328,6.735,148.47,148.44,18.7461]
[1746081867523,5.03175956,148.46,148.44,18.7461]
[1746081867729,6.7346,148.48,148.45,6.7359]
[1746081867931,5.03175956,148.47,148.44,12.01]
[1746081868137,5.03175956,148.46,148.44,12.01]
[1746081868434,6.7346,148.48,148.44,12.01]
[1746081868631,5.03224145,148.47,148.44,12.01]
[1746081868832,5.03224145,148.46,148.44,12.01]
[1746081869029,6.7346,148.48,148.44,12.01]
[1746081869225,5.03285363,148.47,148.44,12.01]
[1746081869429,5.03285363,148.46,148.44,12.01]
[1746081869630,6.7346,148.48,148.44,12.01]
[1746081869834,5.03310484,148.47,148.44,12.01]
[1746081870134,5.03310484,148.46,148.44,12.01]
[1746081870328,6.7346,148.48,148.45,6.7359]
[1746081870528,23.48,148.51,148.44,12.01]
[1746081870529,5.03393364,148.47,148.44,12.01]
[1746081870731,23.48,148.51,148.44,12.01]
[1746081871033,11.76824742,148.5,148.46,6.7351]
[1746081871233,5.03434742,148.49,148.46,6.7351]
[1746081871535,5.03434742,148.48,148.46,6.7351]
[1746081871733,5.03434742,148.47,148.46,6.7351]
[1746081872033,5.03434742,148.48,148.46,6.7351]
[1746081872234,5.03434742,148.47,148.46,6.7351]
[1746081872535,5.03434742,148.5,148.46,6.7351]
[1746081872731,11.76844742,148.49,148.46,6.7351]
[1746081872934,5.03434742,148.48,148.46,6.7351]
[1746081874535,5.0396402,148.47,148.46,6.7351]
[1746081874736,5.0396402,148.47,148.45,6.7358]
[1746081874932,6.7346,148.48,148.45,6.7358]
[1746081875127,5.03966708,148.47,148.45,6.7358]
[1746081875333,6.7343,148.49,148.46,6.7354]
[1746081875534,5.04083798,148.48,148.46,6.7354]
[1746081875736,5.04083798,148.47,148.46,6.7354]
[1746081876437,5.0424257,148.48,148.46,6.7354]
[1746081876631,5.0424257,148.47,148.46,6.7354]
[1746081880237,6.7338,148.5,148.46,6.7354]
[1746081880441,5.04650483,148.49,148.46,6.7354]
[1746081880745,5.04650483,148.48,148.47,6.735]
[1746081881138,5.04641423,148.48,148.47,6.735]
[1746081881637,23.48,148.51,148.47,6.735]
[1746081881838,6.7339,148.5,148.47,6.735]
[1746081882042,5.04612245,148.49,148.47,6.735]
[1746081882239,23.48,148.51,148.44,12.01]
[1746081882240,5.04612245,148.48,148.46,6.7352]
[1746081882441,5.04612245,148.47,148.46,6.7352]
[1746081882746,6.7342,148.49,148.46,6.7352]
[1746081882945,5.04612245,148.48,148.46,6.7352]
[1746081883245,5.04612245,148.47,148.46,6.7352]
[1746081883446,5.04612245,148.47,148.45,6.7357]
[1746081883646,5.04612245,148.46,148.45,6.7357]
[1746081883846,6.7344,148.49,148.45,6.7357]
[1746081884145,5.04612245,148.48,148.45,6.7357]
[1746081884340,5.04612245,148.47,148.46,6.7354]
[1746081884743,5.04612245,148.47,148.43,23.48]
[1746081884947,5.04612245,148.46,148.43,23.48]
[1746081885146,23.48,148.51,148.43,23.48]
[1746081885350,5.04824733,148.5,148.43,23.48]
[1746081885651,5.04824733,148.49,148.43,23.48]
[1746081885850,5.04824733,148.48,148.45,6.7355]
[1746081886049,5.04824733,148.47,148.45,6.7355]
[1746081886248,5.04824733,148.46,148.45,6.7355]
[1746081895561,11.78364733,148.46,148.43,30.2166]
[1746081895763,5.04824733,148.45,148.43,30.2166]
[1746081896062,5.07444135,148.44,148.43,30.2166]
[1746081905271,4.89189216,148.44,148.43,30.2166]
[1746081909172,4.88757588,148.44,148.43,30.2166]
[1746081912978,6.7346,148.48,148.45,6.7359]
[1746081913169,4.88781657,148.47,148.45,6.7359]
[1746081913369,4.88781657,148.46,148.45,6.7359]
[1746081916478,4.61706678,148.46,148.45,6.7359]
[1746081916772,11.30787467,148.49,148.45,6.7359]
[1746081916977,4.61704649,148.48,148.45,6.7359]
[1746081917177,4.61704649,148.47,148.45,6.7359]
[1746081917380,4.61704649,148.46,148.45,6.7359]
[1746081918777,4.61722064,148.46,148.44,6.7362]
[1746081918979,4.61722064,148.45,148.44,6.7362]
[1746081920680,4.57367467,148.47,148.45,6.7359]
[1746081920980,4.61891193,148.46,148.45,6.7359]
[1746081922181,28.05367467,148.51,148.47,6.7349]
[1746081922983,4.57367467,148.49,148.43,28.05367467]
[1746081923482,6.7346,148.48,148.43,28.05367467]
[1746081924185,6.7346,148.48,148.44,6.7361]
[1746081924583,11.30797467,148.49,148.45,6.7357]
[1746081924983,4.57367467,148.49,148.45,6.7357]
[1746081925286,4.57367467,148.49,148.43,23.48]
[1746081926183,4.57367467,148.49,148.44,6.7361]
[1746081926484,23.48,148.51,148.43,23.48]
[1746081926485,4.57367467,148.47,148.43,23.48]
[1746081926682,4.57367467,148.47,148.44,6.7363]
[1746081927485,4.57367467,148.47,148.45,6.7359]
[1746081928184,4.57367467,148.47,148.44,6.7363]
[1746081930288,4.57367467,148.47,148.45,6.7358]
[1746081931185,4.57367467,148.47,148.44,6.7362]
[1746081932091,11.30867467,148.47,148.44,6.7362]
[1746081932391,4.57367467,148.47,148.44,6.7362]
[1746081933995,4.57367467,148.47,148.45,6.7358]
[1746081936792,11.30887467,148.47,148.43,37.48]
[1746081936995,4.57367467,148.47,148.43,37.48]
[1746081937392,6.7355,148.46,148.43,44.2166]
[1746081938098,6.7355,148.46,148.43,20.7366]
[1746081938396,11.30967467,148.45,148.43,14.0]
[1746081938791,4.57367467,148.45,148.43,14.0]
[1746081938991,6.7363,148.44,148.43,14.0]
[1746081939594,6.7363,148.44,148.41,6.7375]
[1746081939796,4.57367467,148.45,148.4,23.52]
[1746081939991,4.57367467,148.45,148.41,6.7375]
[1746081940597,4.57367467,148.43,148.41,6.7375]
[1746081943203,11.31057467,148.43,148.41,6.7375]
[1746081943398,4.57367467,148.43,148.39,6.7382]
[1746081943608,4.57367467,148.41,148.39,6.7382]
[1746081944205,11.31157467,148.41,148.38,6.7389]
[1746081946812,6.7382,148.4,148.37,30.2593]
[1746081947001,6.7382,148.4,148.37,23.52]
[1746081947307,4.57367467,148.39,148.31,23.54]
[1746081947610,4.57367467,148.37,148.31,28.11367467]
[1746081947906,4.57367467,148.39,148.33,4.57367467]
[1746081948307,4.57367467,148.39,148.34,2.1234]
[1746081948506,4.57367467,148.39,148.36,6.7397]
[1746081949213,6.7384,148.4,148.36,6.7397]
[1746081949807,4.57367467,148.39,148.36,6.7397]
[1746081950206,11.31227467,148.39,148.36,6.7397]
[1746081951407,4.57367467,148.39,148.36,6.7397]
[1746081951901,4.57367467,148.39,148.35,23.54]
[1746081953008,4.57367467,148.39,148.36,6.7396]
[1746081953708,4.57367467,148.39,148.37,6.7393]
[1746081956004,23.52,148.43,148.35,28.11367467]
[1746081956206,4.57367467,148.42,148.35,28.11367467]
[1746081956514,11.31117467,148.42,148.35,28.11367467]
[1746081956908,4.57367467,148.4,148.24,358.0]
[1746081957104,4.57367467,148.38,148.29,29.6766]
[1746081957310,4.57367467,148.38,148.32,4.57367467]
[1746081957508,4.57367467,148.38,148.34,6.7406]
[1746081957814,4.57367467,148.38,148.33,23.52]
[1746081958211,4.57367467,148.38,148.35,6.7402]
[1746081961201,11.31207467,148.4,148.36,6.7399]
[1746081961609,11.31207467,148.4,148.34,6.1122]
[1746081961812,23.52,148.43,148.34,10.68587467]
[1746081962009,4.57367467,148.41,148.34,10.68587467]
[1746081962312,11.31137467,148.41,148.34,10.68587467]
[1746081963317,4.57367467,148.41,148.36,4.57367467]
[1746081964216,4.57367467,148.41,148.38,6.7388]
[1746081964415,28.09367467,148.44,148.38,4.57367467]
[1746081965016,6.7369,148.43,148.4,6.7379]
[1746081965410,6.7369,148.43,148.38,4.57367467]
[1746081965714,6.7369,148.43,148.39,6.7383]
[1746081965914,30.2565,148.44,148.38,4.57367467]
[1746081966115,4.57367467,148.4,148.34,29.6322]
[1746081966415,4.57367467,148.38,148.34,29.6322]
[1746081967212,4.57367467,148.38,148.35,11.43]
[1746081967404,4.57367467,148.38,148.35,18.1702]
[1746081967605,6.7383,148.4,148.35,18.1702]
[1746081967810,6.7383,148.4,148.35,11.43]
[1746081968115,7.15603402,148.42,148.35,11.43]
[1746081968819,6.7384,148.4,148.35,18.1701]
[1746081970523,6.7384,148.4,148.36,6.7399]
[1746081972116,6.7387,148.39,148.35,18.1703]
[1746081975524,6.7384,148.4,148.36,6.7399]
[1746081975911,7.15603402,148.42,148.36,6.7399]
[1746081978222,6.7385,148.4,148.36,6.7399]
[1746081978419,7.15603402,148.42,148.36,6.7399]
[1746081979219,6.7386,148.39,148.36,6.7399]
[1746081979419,7.15603402,148.39,148.35,11.43]
[1746081979823,6.74,148.36,148.35,11.43]
[1746081980224,7.15603402,148.39,148.31,23.52]
[1746081981025,6.7405,148.35,148.32,6.7415]
[1746081981522,6.7405,148.35,148.33,6.7413]
[1746081982223,6.7405,148.35,148.32,6.7416]
[1746081982423,7.15603402,148.39,148.31,23.52]
[1746081982623,7.15603402,148.36,148.29,6.0343]
[1746081982835,30.67603402,148.36,148.29,6.0343]
[1746081983331,30.67603402,148.36,148.29,4.0058]
[1746081983528,6.7416,148.33,148.3,6.7427]
[1746081985633,23.66,148.32,148.23,23.66]
[1746081985934,23.66,148.32,148.24,5.9099]
[1746081987035,6.7434,148.29,148.25,6.7449]
[1746081987638,23.66,148.32,148.26,6.7444]
[1746081987836,23.66,148.32,148.24,5.9099]
[1746081988333,6.7425,148.31,148.27,6.744]
[1746081988932,6.7428,148.3,148.27,6.744]
[1746081989134,23.66,148.32,148.26,6.7443]
[1746081989930,23.66,148.32,148.29,6.7432]
[1746081990132,23.66,148.35,148.29,6.7432]
[1746081990735,6.7416,148.33,148.29,6.7432]
[1746081990940,7.15603402,148.34,148.27,6.7439]
[1746081991141,6.7432,148.29,148.24,5.9099]
[1746081991536,7.15603402,148.34,148.26,6.7445]
[1746081991837,6.743,148.3,148.26,6.7445]
[1746081992027,23.66,148.31,148.24,5.9099]
[1746081992233,7.15603402,148.34,148.24,5.9099]
[1746081992435,30.4017,148.33,148.24,13.06593402]
[1746081992932,23.66,148.33,148.24,13.06593402]
[1746081993336,23.66,148.33,148.3,6.7424]
[1746081993736,23.66,148.33,148.31,6.7422]
[1746081994041,23.66,148.33,148.27,23.66]
[1746081994744,30.4014,148.33,148.29,6.7428]
[1746081995739,23.66,148.33,148.31,6.7421]
[1746081996042,23.66,148.36,148.31,6.7421]
[1746081996534,23.66,148.36,148.28,12.69]
[1746081996835,9.18113402,148.37,148.28,12.69]
[1746081997035,2.0538,148.4,148.28,12.69]
[1746081997036,23.66,148.36,148.28,12.69]
[1746081997340,23.66,148.36,148.29,1.9245]
[1746081997536,23.66,148.36,148.33,6.7411]
[1746081998041,7.15603402,148.4,148.31,23.66]
[1746081998244,23.66,148.41,148.31,23.66]
[1746082000044,6.7382,148.4,148.36,6.7397]
[1746082000444,23.66,148.41,148.31,23.66]
[1746082000837,23.66,148.41,148.33,7.15603402]
[1746082001035,6.7371,148.43,148.39,6.7386]
[1746082003446,6.7371,148.43,148.38,6.7389]
[1746082003645,6.7374,148.42,148.38,6.7389]
[1746082005545,6.7378,148.41,148.37,6.7393]
[1746082007754,23.66,148.44,148.36,23.66]
[1746082008052,7.15603402,148.4,148.35,6.7403]
[1746082008756,7.15603402,148.4,148.34,8.7414]
[1746082008951,30.81603402,148.4,148.34,2.0006]
[1746082009151,30.81603402,148.4,148.33,23.66]
[1746082009353,6.7391,148.38,148.34,6.7408]
[1746082013560,11.30863402,148.44,148.36,6.7399]
[1746082013758,23.66,148.43,148.34,2.0584]
[1746082014254,6.7381,148.41,148.37,6.7393]
[1746082014453,23.66,148.43,148.37,6.7393]
[1746082014950,6.738,148.41,148.37,6.7393]
[1746082016765,6.7382,148.4,148.37,6.7393]
[1746082017058,23.66,148.43,148.34,2.0584]
[1746082017664,25.7103,148.43,148.35,6.7401]
[1746082018060,6.7389,148.39,148.34,2.0584]
[1746082018249,6.7389,148.39,148.36,6.74]
[1746082019261,6.7394,148.38,148.35,6.7404]
[1746082022164,6.7388,148.39,148.35,6.7404]
[1746082022364,7.15603402,148.41,148.34,2.0584]
[1746082022767,6.7384,148.4,148.34,2.0584]
[1746082023162,6.7384,148.4,148.37,6.7395]
[1746082023367,7.15603402,148.41,148.37,6.7395]
[1746082023368,13.89413402,148.41,148.37,6.7395]
[1746082023961,6.7382,148.4,148.37,6.7395]
[1746082024957,23.66,148.43,148.34,2.0584]
[1746082025159,23.66,148.43,148.35,4.121]
[1746082025965,6.7375,148.42,148.38,6.7388]
[1746082026866,6.7375,148.42,148.39,6.7386]
[1746082032767,23.66,148.43,148.35,4.121]
[1746082032967,13.18713402,148.47,148.35,4.121]
[1746082033266,6.7374,148.42,148.35,4.121]
[1746082034065,6.7374,148.42,148.38,6.7388]
[1746082034966,6.737,148.43,148.39,6.7385]
[1746082035165,6.737,148.43,148.35,4.121]
[1746082035667,6.7374,148.42,148.38,6.7388]
[1746082036568,6.7374,148.42,148.39,6.7386]
[1746082036769,6.737,148.43,148.39,6.7386]
[1746082037670,13.89253402,148.44,148.4,6.738]
[1746082038572,6.7365,148.44,148.4,6.738]
[1746082039371,6.7359,148.45,148.42,6.7372]
[1746082040070,394.4356,148.46,148.42,6.7372]
[1746082040276,387.7,148.46,148.42,6.7372]
[1746082040769,23.7,148.46,148.43,6.7365]
[1746082040972,23.7,148.48,148.41,23.7]
[1746082041374,30.4348,148.48,148.44,6.736]
[1746082041571,23.7,148.48,148.41,23.7]
[1746082041969,23.7,148.52,148.42,6.0412]
[1746082042381,23.7,148.52,148.45,6.7359]
[1746082042382,6.7337,148.5,148.45,6.7359]
[1746082042568,23.7,148.52,148.45,6.7359]
[1746082043068,6.7343,148.49,148.45,6.7359]
[1746082043275,23.7,148.52,148.42,6.0412]
[1746082043671,6.7356,148.46,148.42,12.7782]
[1746082044673,6.7356,148.46,148.42,6.737]
[1746082045479,23.7,148.52,148.43,6.7368]
[1746082045774,23.7,148.52,148.41,23.7]
[1746082046074,6.7349,148.48,148.44,6.736]
[1746082047575,6.735,148.47,148.44,6.736]
[1746082048475,6.7347,148.48,148.44,6.736]
[1746082049577,6.7351,148.47,148.44,6.736]
[1746082050075,7.15603402,148.51,148.44,6.736]
[1746082050275,6.7348,148.48,148.45,6.7359]
[1746082051977,7.15603402,148.51,148.41,23.7]
[1746082052671,6.7339,148.5,148.46,6.7351]
[1746082053079,6.7341,148.49,148.46,6.7351]
[1746082053878,6.7338,148.5,148.46,6.7351]
[1746082054077,6.7338,148.5,148.47,6.7349]
[1746082054679,13.88943402,148.51,148.47,6.7349]
[1746082054981,23.7,148.52,148.48,6.7345]
[1746082055175,2.1078,148.53,148.48,6.7345]
[1746082055375,6.733,148.52,148.48,6.7345]
[1746082055680,30.77603402,148.54,148.45,23.62]
[1746082056172,30.77603402,148.54,148.47,6.7347]
[1746082056375,6.7336,148.51,148.47,6.7347]
[1746082056574,6.7336,148.51,148.45,23.62]
[1746082057177,6.7336,148.51,148.48,6.7343]
[1746082058482,6.7328,148.52,148.48,6.7343]
[1746082058878,30.77603402,148.54,148.48,6.7343]
[1746082059077,23.62,148.54,148.45,23.62]
[1746082059682,6.7325,148.53,148.5,6.7335]
[1746082059985,23.62,148.54,148.45,23.62]
[1746082060278,30.352,148.54,148.45,23.62]
[1746082060886,6.7323,148.53,148.45,23.62]
[1746082061277,6.7323,148.53,148.45,39.18]
[1746082061785,6.7323,148.53,148.49,6.7338]
[1746082061983,6.7327,148.52,148.49,6.7338]
[1746082063279,6.7333,148.51,148.45,39.18]
[1746082063882,23.62,148.54,148.45,39.18]
[1746082064077,7.15603402,148.53,148.45,39.18]
[1746082064584,6.7347,148.48,148.45,45.9156]
[1746082065485,6.735,148.47,148.45,15.56]
[1746082065887,6.7347,148.48,148.45,22.2959]
[1746082068688,6.7343,148.49,148.45,22.2959]
[1746082069090,23.6,148.5,148.45,15.56]
[1746082069796,23.6,148.5,148.47,6.7346]
[1746082071295,30.3337,148.5,148.47,6.7346]
[1746082072092,30.75603402,148.5,148.45,15.56]
[1746082072797,6.735,148.47,148.45,15.56]
[1746082076702,6.7354,148.46,148.45,15.56]
[1746082077195,6.7354,148.46,148.43,6.7367]
[1746082079100,6.7354,148.46,148.42,30.337]
[1746082080598,6.7354,148.46,148.43,6.7367]
[1746082080799,6.7354,148.46,148.42,23.6]
[1746082082203,6.7354,148.46,148.43,6.7368]
[1746082084606,6.7352,148.47,148.43,6.7368]
[1746082086102,6.7348,148.48,148.44,6.7362]
[1746082086602,6.7348,148.48,148.42,23.6]
[1746082086798,6.7343,148.49,148.45,6.7356]
[1746082086995,23.6,148.5,148.42,23.6]
[1746082087405,6.7344,148.49,148.45,6.7355]
[1746082087710,6.7344,148.49,148.42,23.6]
[1746082089307,6.7344,148.49,148.45,6.7355]
[1746082090008,6.7344,148.49,148.46,6.7354]
[1746082090308,6.7344,148.49,148.42,23.6]
[1746082090611,6.7344,148.49,148.42,37.83]
[1746082091209,6.7344,148.49,148.45,6.7357]
[1746082092013,6.7346,148.48,148.45,6.7357]
[1746082094412,6.7343,148.49,148.46,6.7354]
[1746082096911,30.3338,148.5,148.46,6.7354]
[1746082098922,6.7342,148.49,148.46,6.7354]
[1746082099215,23.6,148.5,148.45,6.7357]
[1746082099918,23.6,148.5,148.46,6.7353]
[1746082100521,6.7342,148.49,148.46,6.7353]
[1746082101924,30.3338,148.5,148.46,6.7353]
[1746082103520,6.7341,148.49,148.46,6.7353]
[1746082105724,6.7341,148.49,148.45,6.7357]
[1746082105924,6.7346,148.48,148.45,6.7357]
[1746082106522,6.7351,148.47,148.43,6.7365]
[1746082106719,6.7351,148.47,148.42,42.40344788]
[1746082106926,11.30824788,148.48,148.44,6.7361]
[1746082108826,6.7351,148.47,148.43,6.7366]
[1746082109127,6.7351,148.47,148.42,42.40344788]
[1746082109426,4.57344788,148.48,148.42,42.40344788]
[1746082110027,11.30824788,148.48,148.44,6.7363]
[1746082111328,4.57344788,148.48,148.45,6.7358]
[1746082112825,34.90724788,148.5,148.43,4.57344788]
[1746082113331,28.17344788,148.5,148.45,4.57344788]
[1746082113933,11.30624788,148.52,148.48,6.7343]
[1746082115632,11.30624788,148.52,148.49,6.7341]
[1746082116330,4.57344788,148.52,148.5,6.7335]
[1746082116730,4.57344788,148.52,148.46,28.01344788]
[1746082117234,11.30634788,148.52,148.46,28.01344788]
[1746082117934,6.7329,148.52,148.49,6.7339]